[Event "Early-Titled-Tuesday-Blitz-April-02-2024"]
[Site "Chess.com"]
[Date "2024.04.02"]
[Round "5"]
[White "maximnovik"]
[Black "BVB009"]
[Result "0-1"]
[WhiteElo "2592"]
[BlackElo "2843"]
[TimeControl "180+1"]
[EndTime "8:55:19 PDT"]
[Termination "BVB009 won by resignation"]

1. e4 {[%clk 0:03:00]} 1... c5 {[%clk 0:02:56.8]} 2. Nf3 {[%clk 0:02:59.7]} 2...
e6 {[%clk 0:02:55.8]} 3. c3 {[%clk 0:02:59.7]} 3... d5 {[%clk 0:02:50.9]} 4. e5
{[%clk 0:02:59]} 4... Nc6 {[%clk 0:02:51.1]} 5. d4 {[%clk 0:02:58.7]} 5... Nge7
{[%clk 0:02:51.7]} 6. Na3 {[%clk 0:02:49]} 6... Bd7 {[%clk 0:02:44.1]} 7. Be2
{[%clk 0:02:41.8]} 7... cxd4 {[%clk 0:02:40.9]} 8. cxd4 {[%clk 0:02:41.5]} 8...
Nf5 {[%clk 0:02:41.4]} 9. Nc2 {[%clk 0:02:40.4]} 9... Be7 {[%clk 0:02:40.4]} 10.
O-O {[%clk 0:02:39.1]} 10... h5 {[%clk 0:02:34.2]} 11. a3 {[%clk 0:02:38.1]}
11... g5 {[%clk 0:02:32.7]} 12. Bd3 {[%clk 0:02:38.1]} 12... g4 {[%clk
0:02:30.5]} 13. Bxf5 {[%clk 0:02:35.8]} 13... exf5 {[%clk 0:02:31.4]} 14. Nfe1
{[%clk 0:02:35]} 14... Na5 {[%clk 0:02:10.8]} 15. Nd3 {[%clk 0:02:31.8]} 15...
Rc8 {[%clk 0:02:08.2]} 16. Ne3 {[%clk 0:02:23.3]} 16... Be6 {[%clk 0:02:03.3]}
17. Nf4 {[%clk 0:02:12.4]} 17... Qd7 {[%clk 0:02:00.6]} 18. Bd2 {[%clk 0:02:02]}
18... Nc4 {[%clk 0:01:59.6]} 19. Nxc4 {[%clk 0:01:57.8]} 19... Rxc4 {[%clk
0:02:00.5]} 20. Be3 {[%clk 0:01:51.1]} 20... h4 {[%clk 0:01:52.2]} 21. Qd2
{[%clk 0:01:50]} 21... Qb5 {[%clk 0:01:38.5]} 22. Rac1 {[%clk 0:01:48.1]} 22...
Kd7 {[%clk 0:01:37.8]} 23. Rxc4 {[%clk 0:01:33.6]} 23... Qxc4 {[%clk 0:01:38.7]}
24. Rc1 {[%clk 0:01:33]} 24... Qb5 {[%clk 0:01:38.3]} 25. Qc2 {[%clk 0:01:21.8]}
25... Qb6 {[%clk 0:01:32.6]} 26. Nd3 {[%clk 0:01:12.7]} 26... a6 {[%clk
0:01:28.6]} 27. b4 {[%clk 0:01:08.9]} 27... h3 {[%clk 0:01:24.4]} 28. g3 {[%clk
0:01:02.9]} 28... Rb8 {[%clk 0:01:19.4]} 29. a4 {[%clk 0:01:01.2]} 29... Qd8
{[%clk 0:01:12.5]} 30. f3 {[%clk 0:00:54.7]} 30... Rc8 {[%clk 0:01:09.8]} 31.
Qxc8+ {[%clk 0:00:52.5]} 31... Qxc8 {[%clk 0:01:09.2]} 32. Rxc8 {[%clk
0:00:52.3]} 32... Kxc8 {[%clk 0:01:10.1]} 33. Kf2 {[%clk 0:00:50.2]} 33... Bd7
{[%clk 0:01:05.9]} 34. a5 {[%clk 0:00:47.6]} 34... Be6 {[%clk 0:01:04.3]} 35.
Bh6 {[%clk 0:00:43.9]} 35... Kc7 {[%clk 0:01:01.1]} 36. Ke3 {[%clk 0:00:43.1]}
36... Kc6 {[%clk 0:01:00.9]} 37. fxg4 {[%clk 0:00:42.7]} 37... fxg4 {[%clk
0:01:00.6]} 38. Nf4 {[%clk 0:00:41.8]} 38... Bxb4 {[%clk 0:00:59.4]} 39. Bg5
{[%clk 0:00:24.7]} 39... Bxa5 {[%clk 0:00:56.7]} 40. Be7 {[%clk 0:00:24.2]}
40... Bc3 {[%clk 0:00:50.6]} 41. Ne2 {[%clk 0:00:22.2]} 41... Bb2 {[%clk
0:00:45.2]} 42. Kf4 {[%clk 0:00:21.8]} 42... a5 {[%clk 0:00:44.2]} 43. Kg5
{[%clk 0:00:21.2]} 43... a4 {[%clk 0:00:43.3]} 44. Kf6 {[%clk 0:00:20]} 44... a3
{[%clk 0:00:42.4]} 45. Bxa3 {[%clk 0:00:20]} 45... Bxa3 {[%clk 0:00:42.7]} 46.
Nf4 {[%clk 0:00:20.9]} 46... Kd7 {[%clk 0:00:41.4]} 0-1

[Event "Early-Titled-Tuesday-Blitz-April-02-2024"]
[Site "Chess.com"]
[Date "2024.04.02"]
[Round "5"]
[White "AniJak"]
[Black "PonyQueen07"]
[Result "1-0"]
[WhiteElo "2385"]
[BlackElo "2114"]
[TimeControl "180+1"]
[EndTime "8:55:19 PDT"]
[Termination "AniJak won on time"]

1. e4 {[%clk 0:02:49.9]} 1... c5 {[%clk 0:02:59.8]} 2. Nf3 {[%clk 0:02:47.8]}
2... Nc6 {[%clk 0:02:59.6]} 3. d4 {[%clk 0:02:47.4]} 3... cxd4 {[%clk
0:02:59.5]} 4. Nxd4 {[%clk 0:02:46.5]} 4... Nf6 {[%clk 0:03:00]} 5. Nc3 {[%clk
0:02:46.3]} 5... e5 {[%clk 0:03:00.5]} 6. Ndb5 {[%clk 0:02:45.9]} 6... d6 {[%clk
0:03:00.2]} 7. Bg5 {[%clk 0:02:45.4]} 7... a6 {[%clk 0:03:00.5]} 8. Na3 {[%clk
0:02:45.5]} 8... b5 {[%clk 0:03:00.5]} 9. Nd5 {[%clk 0:02:46.2]} 9... Be7 {[%clk
0:03:00.9]} 10. Bxf6 {[%clk 0:02:46.2]} 10... Bxf6 {[%clk 0:03:01.3]} 11. c3
{[%clk 0:02:45.8]} 11... O-O {[%clk 0:02:58.9]} 12. Nc2 {[%clk 0:02:46.2]} 12...
Rb8 {[%clk 0:02:53.3]} 13. Be2 {[%clk 0:02:42.7]} 13... Bg5 {[%clk 0:02:53.2]}
14. Bg4 {[%clk 0:02:38.2]} 14... Bb7 {[%clk 0:02:34.6]} 15. O-O {[%clk
0:02:33.5]} 15... Ne7 {[%clk 0:02:30.7]} 16. Nce3 {[%clk 0:02:29.4]} 16... Bxe3
{[%clk 0:02:24.4]} 17. Nxe3 {[%clk 0:02:28.6]} 17... Bxe4 {[%clk 0:02:20.3]} 18.
a4 {[%clk 0:02:24.3]} 18... f5 {[%clk 0:01:58]} 19. Be2 {[%clk 0:02:17.4]} 19...
f4 {[%clk 0:01:54.8]} 20. f3 {[%clk 0:02:10.2]} 20... Qb6 {[%clk 0:01:26.9]} 21.
fxe4 {[%clk 0:02:08.3]} 21... Qxe3+ {[%clk 0:01:26.8]} 22. Kh1 {[%clk
0:02:08.9]} 22... Qxe4 {[%clk 0:01:20.1]} 23. Bf3 {[%clk 0:02:03.5]} 23... Qg6
{[%clk 0:01:14.4]} 24. axb5 {[%clk 0:02:03.5]} 24... axb5 {[%clk 0:01:11.2]} 25.
Ra7 {[%clk 0:02:04.1]} 25... Nf5 {[%clk 0:00:58.1]} 26. Qd5+ {[%clk 0:01:45.7]}
26... Kh8 {[%clk 0:00:56.9]} 27. Rfa1 {[%clk 0:01:35.7]} 27... Ne3 {[%clk
0:00:51.7]} 28. Qc6 {[%clk 0:01:27.9]} 28... Qd3 {[%clk 0:00:22]} 29. h3 {[%clk
0:01:14.7]} 29... Rfe8 {[%clk 0:00:12.5]} 30. Ra8 {[%clk 0:01:14.2]} 30... Qg6
{[%clk 0:00:04.2]} 31. Be4 {[%clk 0:01:08.8]} 31... Qf7 {[%clk 0:00:02.9]} 32.
R1a7 {[%clk 0:01:07.3]} 32... Qf8 {[%clk 0:00:02.4]} 33. Rxb8 {[%clk 0:00:55.2]}
33... Rxb8 {[%clk 0:00:02.2]} 34. Qd7 {[%clk 0:00:52.6]} 34... d5 {[%clk
0:00:01.1]} 35. Bd3 {[%clk 0:00:42]} 35... e4 {[%clk 0:00:01.5]} 36. Bxb5 {[%clk
0:00:41.7]} 36... f3 {[%clk 0:00:02]} 37. Bf1 {[%clk 0:00:33.1]} 37... fxg2+
{[%clk 0:00:01.8]} 38. Bxg2 {[%clk 0:00:33.2]} 1-0

[Event "Early-Titled-Tuesday-Blitz-April-02-2024"]
[Site "Chess.com"]
[Date "2024.04.02"]
[Round "5"]
[White "stolencandy13"]
[Black "ActorXu"]
[Result "1-0"]
[WhiteElo "2664"]
[BlackElo "2837"]
[TimeControl "180+1"]
[EndTime "8:55:26 PDT"]
[Termination "stolencandy13 won by resignation"]

1. d4 {[%clk 0:02:51.5]} 1... Nf6 {[%clk 0:02:59.9]} 2. Bf4 {[%clk 0:02:49.7]}
2... c5 {[%clk 0:02:58.3]} 3. e3 {[%clk 0:02:49.1]} 3... Qb6 {[%clk 0:02:57.5]}
4. Nc3 {[%clk 0:02:49]} 4... d6 {[%clk 0:02:52.9]} 5. Rb1 {[%clk 0:02:48.7]}
5... a6 {[%clk 0:02:52.1]} 6. Nf3 {[%clk 0:02:48]} 6... g6 {[%clk 0:02:52.1]} 7.
Bc4 {[%clk 0:02:44.6]} 7... Bg7 {[%clk 0:02:49.1]} 8. O-O {[%clk 0:02:44.4]}
8... O-O {[%clk 0:02:48.6]} 9. h3 {[%clk 0:02:43.2]} 9... Nbd7 {[%clk
0:02:43.3]} 10. Re1 {[%clk 0:02:40.7]} 10... Qc7 {[%clk 0:02:40.6]} 11. a4
{[%clk 0:02:33.4]} 11... b6 {[%clk 0:02:34.2]} 12. Qe2 {[%clk 0:02:16.2]} 12...
Bb7 {[%clk 0:02:31.5]} 13. Rbd1 {[%clk 0:02:16.3]} 13... h6 {[%clk 0:02:12]} 14.
Bh2 {[%clk 0:02:13.5]} 14... e5 {[%clk 0:01:59.9]} 15. dxe5 {[%clk 0:02:08.6]}
15... Nxe5 {[%clk 0:01:59.7]} 16. Nxe5 {[%clk 0:02:03.5]} 16... dxe5 {[%clk
0:01:59.2]} 17. Qd3 {[%clk 0:01:59.8]} 17... Rad8 {[%clk 0:01:52.1]} 18. Qxg6
{[%clk 0:01:53.9]} 18... Qe7 {[%clk 0:01:44.6]} 19. Qf5 {[%clk 0:01:46.8]} 19...
Nh7 {[%clk 0:01:37.4]} 20. Nd5 {[%clk 0:01:38.9]} 20... Bxd5 {[%clk 0:01:32.4]}
21. Bxd5 {[%clk 0:01:39.8]} 21... b5 {[%clk 0:01:27.9]} 22. axb5 {[%clk
0:01:23.8]} 22... axb5 {[%clk 0:01:27.3]} 23. c3 {[%clk 0:01:24.7]} 23... c4
{[%clk 0:01:17.9]} 24. Be4 {[%clk 0:01:23.3]} 24... Ng5 {[%clk 0:01:15]} 25. Bc2
{[%clk 0:01:20.1]} 25... Rxd1 {[%clk 0:01:10.5]} 26. Rxd1 {[%clk 0:01:18]} 26...
Rd8 {[%clk 0:01:11.4]} 27. h4 {[%clk 0:01:05.4]} 27... Rxd1+ {[%clk 0:01:08.9]}
28. Bxd1 {[%clk 0:01:06.3]} 28... Nh7 {[%clk 0:01:03.3]} 29. Bc2 {[%clk
0:01:03]} 29... Nf8 {[%clk 0:01:02.6]} 30. h5 {[%clk 0:00:50.7]} 30... Qd6
{[%clk 0:01:00]} 31. Bg3 {[%clk 0:00:45.9]} 31... Qd2 {[%clk 0:00:48.4]} 32. Bh4
{[%clk 0:00:43]} 32... Qc1+ {[%clk 0:00:45.2]} 33. Kh2 {[%clk 0:00:41]} 33...
Qxb2 {[%clk 0:00:44.8]} 34. Be4 {[%clk 0:00:39.8]} 34... Qxc3 {[%clk 0:00:35.9]}
35. Bd5 {[%clk 0:00:39.8]} 35... Ne6 {[%clk 0:00:28.4]} 36. Bxe6 {[%clk
0:00:40]} 36... fxe6 {[%clk 0:00:28.6]} 37. Qxe6+ {[%clk 0:00:40.9]} 37... Kh8
{[%clk 0:00:27.5]} 38. Qe8+ {[%clk 0:00:40.2]} 38... Kh7 {[%clk 0:00:27.8]} 39.
Qg6+ {[%clk 0:00:40.2]} 39... Kh8 {[%clk 0:00:28.2]} 40. Bf6 {[%clk 0:00:37.1]}
40... Bxf6 {[%clk 0:00:28.5]} 41. Qxf6+ {[%clk 0:00:37.2]} 41... Kg8 {[%clk
0:00:27.4]} 42. Qg6+ {[%clk 0:00:37.5]} 42... Kf8 {[%clk 0:00:27.7]} 43. Qxh6+
{[%clk 0:00:34.3]} 43... Kg8 {[%clk 0:00:24.1]} 44. Qg6+ {[%clk 0:00:34.3]}
44... Kh8 {[%clk 0:00:24.4]} 45. Qf6+ {[%clk 0:00:31.6]} 45... Kh7 {[%clk
0:00:20.3]} 46. h6 {[%clk 0:00:31.4]} 1-0

[Event "Early-Titled-Tuesday-Blitz-April-02-2024"]
[Site "Chess.com"]
[Date "2024.04.02"]
[Round "5"]
[White "Beca95"]
[Black "jumpingknight20"]
[Result "1/2-1/2"]
[WhiteElo "2936"]
[BlackElo "2689"]
[TimeControl "180+1"]
[EndTime "8:55:27 PDT"]
[Termination "Game drawn - insufficient material"]

1. d4 {[%clk 0:02:58.6]} 1... Nf6 {[%clk 0:02:59.9]} 2. c4 {[%clk 0:02:58.8]}
2... e6 {[%clk 0:03:00.3]} 3. Nc3 {[%clk 0:02:58.6]} 3... d5 {[%clk 0:03:00.7]}
4. Nf3 {[%clk 0:02:58.4]} 4... Bb4 {[%clk 0:02:56]} 5. Bg5 {[%clk 0:02:58.9]}
5... h6 {[%clk 0:02:55.6]} 6. Bxf6 {[%clk 0:02:59]} 6... Qxf6 {[%clk 0:02:56.5]}
7. e3 {[%clk 0:02:58.7]} 7... O-O {[%clk 0:02:55.7]} 8. Rc1 {[%clk 0:02:58.7]}
8... c5 {[%clk 0:02:29.2]} 9. dxc5 {[%clk 0:02:52]} 9... dxc4 {[%clk 0:02:24.4]}
10. a3 {[%clk 0:02:50.7]} 10... Bxc5 {[%clk 0:02:17.1]} 11. Ne4 {[%clk
0:02:50.7]} 11... Qe7 {[%clk 0:02:10.2]} 12. Nxc5 {[%clk 0:02:47]} 12... Qxc5
{[%clk 0:02:10]} 13. Rxc4 {[%clk 0:02:47.1]} 13... Qe7 {[%clk 0:02:03.7]} 14.
Qc1 {[%clk 0:02:45.7]} 14... Nc6 {[%clk 0:02:01.9]} 15. Be2 {[%clk 0:02:45.7]}
15... e5 {[%clk 0:02:00.7]} 16. O-O {[%clk 0:02:45.8]} 16... Be6 {[%clk
0:02:01]} 17. Rc5 {[%clk 0:02:45.8]} 17... Rac8 {[%clk 0:01:50]} 18. b4 {[%clk
0:02:44.6]} 18... e4 {[%clk 0:01:40.9]} 19. Nd2 {[%clk 0:02:44.4]} 19... f5
{[%clk 0:01:33.2]} 20. Qc3 {[%clk 0:02:43.5]} 20... Nb8 {[%clk 0:01:23.3]} 21.
Rc1 {[%clk 0:02:40.9]} 21... Rxc5 {[%clk 0:01:21.3]} 22. Qxc5 {[%clk 0:02:40.9]}
22... Qxc5 {[%clk 0:01:20.9]} 23. Rxc5 {[%clk 0:02:41.8]} 23... Rd8 {[%clk
0:01:07.7]} 24. Nc4 {[%clk 0:02:41.4]} 24... Na6 {[%clk 0:00:51.9]} 25. Re5
{[%clk 0:02:40.4]} 25... Kf7 {[%clk 0:00:51.1]} 26. f4 {[%clk 0:02:40.4]} 26...
exf3 {[%clk 0:00:46.9]} 27. gxf3 {[%clk 0:02:40.3]} 27... Kf6 {[%clk 0:00:47.2]}
28. f4 {[%clk 0:02:40.3]} 28... Nc7 {[%clk 0:00:44.9]} 29. Rc5 {[%clk
0:02:37.6]} 29... Nd5 {[%clk 0:00:42.3]} 30. Kf2 {[%clk 0:02:36.5]} 30... b6
{[%clk 0:00:35.9]} 31. Rc6 {[%clk 0:02:36.2]} 31... Ne7 {[%clk 0:00:36.5]} 32.
Rc7 {[%clk 0:02:35.7]} 32... Rc8 {[%clk 0:00:37]} 33. Rxc8 {[%clk 0:02:32.3]}
33... Nxc8 {[%clk 0:00:37.9]} 34. Ne5 {[%clk 0:02:29.6]} 34... Nd6 {[%clk
0:00:37.6]} 35. Nc6 {[%clk 0:02:29.3]} 35... Ne4+ {[%clk 0:00:38.1]} 36. Ke1
{[%clk 0:02:29.3]} 36... Nc3 {[%clk 0:00:23.1]} 37. Bd3 {[%clk 0:02:29.2]} 37...
Bd7 {[%clk 0:00:20.6]} 38. Nxa7 {[%clk 0:02:28.8]} 38... Nd5 {[%clk 0:00:13.9]}
39. Kd2 {[%clk 0:02:27.3]} 39... Nc7 {[%clk 0:00:14.1]} 40. b5 {[%clk
0:02:27.4]} 40... Ke6 {[%clk 0:00:12.5]} 41. a4 {[%clk 0:02:24.3]} 41... Kd6
{[%clk 0:00:11.9]} 42. Kc3 {[%clk 0:02:18.4]} 42... Kc5 {[%clk 0:00:10.8]} 43.
e4 {[%clk 0:02:15]} 43... fxe4 {[%clk 0:00:10.2]} 44. Bxe4 {[%clk 0:02:15.9]}
44... Ne6 {[%clk 0:00:10.4]} 45. f5 {[%clk 0:02:15.4]} 45... Nd4 {[%clk
0:00:10.7]} 46. h4 {[%clk 0:02:07.7]} 46... Bxf5 {[%clk 0:00:08.9]} 47. Bxf5
{[%clk 0:02:06.5]} 47... Nxf5 {[%clk 0:00:09.8]} 48. Nc6 {[%clk 0:02:04.4]}
48... Nxh4 {[%clk 0:00:10.2]} 49. Nb8 {[%clk 0:02:05]} 49... Kd6 {[%clk
0:00:09.3]} 50. Kd3 {[%clk 0:02:03.7]} 50... Nf5 {[%clk 0:00:08.5]} 51. Nc6
{[%clk 0:02:03.5]} 51... g5 {[%clk 0:00:06.2]} 52. a5 {[%clk 0:02:02]} 52...
bxa5 {[%clk 0:00:06]} 53. Nxa5 {[%clk 0:02:02.9]} 53... Kc5 {[%clk 0:00:06.6]}
54. Ke4 {[%clk 0:02:00.3]} 54... Nd6+ {[%clk 0:00:07.1]} 55. Kf3 {[%clk
0:02:00.5]} 55... Kxb5 {[%clk 0:00:05.2]} 56. Nb3 {[%clk 0:02:00.4]} 56... Kc4
{[%clk 0:00:05.5]} 57. Nc1 {[%clk 0:01:59.8]} 57... h5 {[%clk 0:00:04]} 58. Ne2
{[%clk 0:02:00]} 58... Kd5 {[%clk 0:00:03.6]} 59. Ng3 {[%clk 0:01:59.3]} 59...
h4 {[%clk 0:00:04.2]} 60. Nf1 {[%clk 0:01:59.6]} 60... Ke5 {[%clk 0:00:03.7]}
61. Kg4 {[%clk 0:01:59.9]} 61... Kf6 {[%clk 0:00:04.2]} 62. Ne3 {[%clk
0:01:58.5]} 62... Kg6 {[%clk 0:00:04.3]} 63. Nd5 {[%clk 0:01:56.9]} 63... Nf7
{[%clk 0:00:04.2]} 64. Ne7+ {[%clk 0:01:57]} 64... Kf6 {[%clk 0:00:04.9]} 65.
Nd5+ {[%clk 0:01:57]} 65... Ke6 {[%clk 0:00:05.5]} 66. Ne3 {[%clk 0:01:57.3]}
66... Ke5 {[%clk 0:00:04.7]} 67. Ng2 {[%clk 0:01:57.5]} 67... Kf6 {[%clk
0:00:03.5]} 68. Nxh4 {[%clk 0:01:57.7]} 68... Ne5+ {[%clk 0:00:04]} 69. Kh3
{[%clk 0:01:57.7]} 69... gxh4 {[%clk 0:00:04.7]} 70. Kxh4 {[%clk 0:01:58]}
1/2-1/2

[Event "Early-Titled-Tuesday-Blitz-April-02-2024"]
[Site "Chess.com"]
[Date "2024.04.02"]
[Round "5"]
[White "martinmena"]
[Black "BashirliSaadat"]
[Result "1-0"]
[WhiteElo "2167"]
[BlackElo "2355"]
[TimeControl "180+1"]
[EndTime "8:55:27 PDT"]
[Termination "martinmena won by resignation"]

1. c4 {[%clk 0:03:00.9]} 1... e6 {[%clk 0:02:59.1]} 2. g3 {[%clk 0:02:58.8]}
2... Nf6 {[%clk 0:02:59.6]} 3. Bg2 {[%clk 0:02:54.5]} 3... d5 {[%clk 0:03:00.1]}
4. Nf3 {[%clk 0:02:52.9]} 4... c6 {[%clk 0:02:59.8]} 5. O-O {[%clk 0:02:52.4]}
5... Bd6 {[%clk 0:03:00.3]} 6. d4 {[%clk 0:02:44.5]} 6... O-O {[%clk 0:03:00.1]}
7. Nc3 {[%clk 0:02:44.2]} 7... Re8 {[%clk 0:02:59.1]} 8. b3 {[%clk 0:02:44.4]}
8... Nbd7 {[%clk 0:02:59.3]} 9. Bb2 {[%clk 0:02:43.7]} 9... b6 {[%clk
0:02:59.6]} 10. Qc2 {[%clk 0:02:43.3]} 10... Bb7 {[%clk 0:02:59.6]} 11. e4
{[%clk 0:02:40.2]} 11... dxe4 {[%clk 0:02:59.5]} 12. Nxe4 {[%clk 0:02:41.1]}
12... Nxe4 {[%clk 0:03:00]} 13. Qxe4 {[%clk 0:02:42]} 13... Nf6 {[%clk
0:03:00.5]} 14. Qd3 {[%clk 0:02:34.2]} 14... c5 {[%clk 0:02:55.6]} 15. dxc5
{[%clk 0:02:31.8]} 15... Bxc5 {[%clk 0:02:56]} 16. Rad1 {[%clk 0:02:29.4]} 16...
Qe7 {[%clk 0:02:39]} 17. Bxf6 {[%clk 0:02:24]} 17... Qxf6 {[%clk 0:02:37.4]} 18.
Qe2 {[%clk 0:02:14.5]} 18... Rad8 {[%clk 0:02:35.3]} 19. Ne5 {[%clk 0:02:12.3]}
19... Bxg2 {[%clk 0:02:29.1]} 20. Kxg2 {[%clk 0:02:10.1]} 20... Qe7 {[%clk
0:02:19.8]} 21. Qf3 {[%clk 0:01:57.9]} 21... Qc7 {[%clk 0:02:07.2]} 22. Nc6
{[%clk 0:01:49.8]} 22... Rd6 {[%clk 0:02:01.8]} 23. Rxd6 {[%clk 0:01:46.4]}
23... Bxd6 {[%clk 0:02:00.7]} 24. Rd1 {[%clk 0:01:45.3]} 24... Rc8 {[%clk
0:02:01.1]} 25. Nxa7 {[%clk 0:01:43.5]} 25... Qxa7 {[%clk 0:01:39.3]} 26. Rxd6
{[%clk 0:01:42.9]} 26... Rb8 {[%clk 0:01:32.7]} 27. a4 {[%clk 0:01:41.3]} 27...
Qc7 {[%clk 0:01:30.5]} 28. Qc6 {[%clk 0:01:32]} 28... Qe7 {[%clk 0:01:24.3]} 29.
Qd7 {[%clk 0:01:24.9]} 29... Qf8 {[%clk 0:01:12.9]} 30. Qc7 {[%clk 0:01:22.8]}
30... h6 {[%clk 0:00:50.5]} 31. Rxb6 {[%clk 0:01:13.8]} 31... Rc8 {[%clk
0:00:50.7]} 32. Qd6 {[%clk 0:01:10.7]} 32... Qe8 {[%clk 0:00:47.9]} 33. c5
{[%clk 0:01:05]} 33... Rd8 {[%clk 0:00:46.6]} 34. Qc7 {[%clk 0:00:59.8]} 34...
Rc8 {[%clk 0:00:41.9]} 35. Qb7 {[%clk 0:00:45.6]} 35... Rd8 {[%clk 0:00:41.8]}
36. Rd6 {[%clk 0:00:43.7]} 36... Rb8 {[%clk 0:00:41]} 37. Qd7 {[%clk 0:00:39.2]}
37... Qxd7 {[%clk 0:00:18.7]} 38. Rxd7 {[%clk 0:00:40.1]} 38... Rxb3 {[%clk
0:00:18.5]} 39. c6 {[%clk 0:00:40.1]} 39... Rc3 {[%clk 0:00:13.1]} 40. c7 {[%clk
0:00:40.4]} 40... Kh7 {[%clk 0:00:13.2]} 41. a5 {[%clk 0:00:40.5]} 41... Kg6
{[%clk 0:00:08.5]} 42. a6 {[%clk 0:00:40.7]} 42... Kf6 {[%clk 0:00:06.6]} 43. a7
{[%clk 0:00:40.7]} 1-0

[Event "Early-Titled-Tuesday-Blitz-April-02-2024"]
[Site "Chess.com"]
[Date "2024.04.02"]
[Round "5"]
[White "krstulov_alex"]
[Black "alexrustemov"]
[Result "1-0"]
[WhiteElo "2683"]
[BlackElo "2881"]
[TimeControl "180+1"]
[EndTime "8:55:32 PDT"]
[Termination "krstulov_alex won on time"]

1. d4 {[%clk 0:02:57.4]} 1... g6 {[%clk 0:02:58.4]} 2. c4 {[%clk 0:02:56.7]}
2... Bg7 {[%clk 0:02:58.3]} 3. Nf3 {[%clk 0:02:57.4]} 3... d6 {[%clk 0:02:57.6]}
4. Nc3 {[%clk 0:02:57.8]} 4... c5 {[%clk 0:02:56.7]} 5. d5 {[%clk 0:02:57.3]}
5... Bxc3+ {[%clk 0:02:55.1]} 6. bxc3 {[%clk 0:02:58.2]} 6... f5 {[%clk
0:02:55.1]} 7. Qc2 {[%clk 0:02:07.3]} 7... Qa5 {[%clk 0:02:51.8]} 8. Rb1 {[%clk
0:01:58.6]} 8... Nd7 {[%clk 0:02:51.8]} 9. e4 {[%clk 0:01:56]} 9... fxe4 {[%clk
0:02:47.3]} 10. Ng5 {[%clk 0:01:56.2]} 10... Ngf6 {[%clk 0:02:27.6]} 11. Ne6
{[%clk 0:01:54.5]} 11... a6 {[%clk 0:02:18]} 12. Be2 {[%clk 0:01:49.6]} 12...
Ne5 {[%clk 0:02:17.8]} 13. O-O {[%clk 0:01:41.3]} 13... Bxe6 {[%clk 0:02:08.9]}
14. dxe6 {[%clk 0:01:37.2]} 14... Qc7 {[%clk 0:02:03]} 15. Bh6 {[%clk
0:01:37.2]} 15... Rg8 {[%clk 0:01:54.2]} 16. Bg5 {[%clk 0:01:23.2]} 16... Qc6
{[%clk 0:01:46.3]} 17. f3 {[%clk 0:01:05.1]} 17... O-O-O {[%clk 0:01:37.3]} 18.
Bxf6 {[%clk 0:00:57.5]} 18... exf6 {[%clk 0:01:36.6]} 19. f4 {[%clk 0:00:57.7]}
19... Nd3 {[%clk 0:01:31.2]} 20. Bxd3 {[%clk 0:00:58.4]} 20... exd3 {[%clk
0:01:31.4]} 21. Qxd3 {[%clk 0:00:59.3]} 21... f5 {[%clk 0:01:28.2]} 22. Qd5
{[%clk 0:00:56.9]} 22... Rge8 {[%clk 0:01:16.5]} 23. a4 {[%clk 0:00:54.5]} 23...
Re7 {[%clk 0:01:04.3]} 24. a5 {[%clk 0:00:54.5]} 24... Qxd5 {[%clk 0:00:25.5]}
25. cxd5 {[%clk 0:00:54.3]} 25... c4 {[%clk 0:00:26.1]} 26. Rb6 {[%clk
0:00:52.2]} 26... Rc7 {[%clk 0:00:26.6]} 27. Rfb1 {[%clk 0:00:50.1]} 27... h6
{[%clk 0:00:19.8]} 28. h4 {[%clk 0:00:29]} 28... h5 {[%clk 0:00:16.1]} 29. Kf2
{[%clk 0:00:28.6]} 29... Rc5 {[%clk 0:00:16.3]} 30. Rxb7 {[%clk 0:00:28.4]}
30... Rxd5 {[%clk 0:00:10.5]} 31. Rb8+ {[%clk 0:00:28.8]} 31... Kc7 {[%clk
0:00:11.1]} 32. R1b7+ {[%clk 0:00:29.2]} 32... Kc6 {[%clk 0:00:11.6]} 33. Rb6+
{[%clk 0:00:29.5]} 33... Kc7 {[%clk 0:00:11.5]} 34. R8b7+ {[%clk 0:00:28.1]}
34... Kc8 {[%clk 0:00:10.9]} 35. Rb8+ {[%clk 0:00:29]} 35... Kc7 {[%clk
0:00:11.1]} 36. R6b7+ {[%clk 0:00:29.9]} 36... Kc6 {[%clk 0:00:11.5]} 37. Rxd8
{[%clk 0:00:30.8]} 37... Kxb7 {[%clk 0:00:11.9]} 38. e7 {[%clk 0:00:31.5]} 38...
Rd2+ {[%clk 0:00:03.8]} 39. Kf1 {[%clk 0:00:28.7]} 39... Rd1+ {[%clk 0:00:03.7]}
40. Ke2 {[%clk 0:00:29.1]} 1-0